fUSD/lending_fUSD_20260320
["ID","MTS","AMOUNT","RATE_DAILY","PERIOD"]
[408636520,1774029058409,-500.0,0.00015999,2]
[408636521,1774029058420,-500.0,0.00015999,2]
[408636522,1774029058431,-500.0,0.00015999,2]
[408636523,1774029058442,-499.02938322,0.00015999,2]
[408636524,1774029058457,-500.0,0.00015999,2]
[408636525,1774029058469,-500.0,0.00015999,2]
[408636526,1774029058479,-500.0,0.00015999,2]
[408636527,1774029058489,-500.0,0.00015999,2]
[408636528,1774029058499,-500.0,0.00015999,2]
[408636529,1774029058509,-500.0,0.00015999,2]
[408636530,1774029058520,-500.0,0.00015999,2]
[408636531,1774029058530,-500.0,0.00015999,2]
[408636532,1774029058540,-500.0,0.00015999,2]
[408636533,1774029058550,-500.0,0.00015999,2]
[408636534,1774029058561,-500.0,0.00015999,2]
[408636535,1774029058575,-500.0,0.00015999,2]
[408636536,1774029058586,-329064.3607395,0.00016,2]
[408636537,1774029058992,-716.49020845,0.00016,2]
[408636538,1774029059004,-300.65807765,0.00016,2]
[408636539,1774029059031,-151.0,0.0001589,2]
[408636540,1774029059213,-204.04242596,0.00016,2]
[408636541,1774029059239,-210.826766,0.0001589,2]
[408636542,1774029059249,-1045.138042,0.0001589,2]
[408636543,1774029059258,-19583.335192,0.00016,2]
[408636544,1774029059724,-2465.0,0.00014089,2]
[408636545,1774029059734,-151.0,0.0001589,2]
[408636546,1774029059743,-79.75249737,0.0001589,2]
[408636547,1774029059755,-131.07426063,0.0001589,2]
[408636548,1774029059764,-1045.138042,0.0001589,2]
[408636549,1774029059774,-151.0,0.0001589,2]
[408636550,1774029059787,-1045.138042,0.0001589,2]
[408636551,1774029059797,-151.0,0.0001589,2]
[408636552,1774029059808,-1045.138042,0.0001589,2]
[408636553,1774029059817,-151.0,0.0001589,2]
[408636554,1774029059827,-1045.138042,0.0001589,2]
[408636555,1774029059836,-151.0,0.0001589,2]
[408636556,1774029059845,-1045.138042,0.0001589,2]
[408636557,1774029059855,-151.0,0.0001589,2]
[408636558,1774029059864,-962.93584421,0.0001589,2]
[408636559,1774029059876,-82.20219779,0.0001589,2]
[408636560,1774029059885,-151.0,0.0001589,2]
[408636561,1774029059894,-1004.17956633,0.0001589,2]
[408636562,1774029059905,-40.95847567,0.0001589,2]
[408636563,1774029059915,-151.0,0.0001589,2]
[408636564,1774029059924,-1898.89008223,0.00016,2]
[408636565,1774029060217,-166.55,0.00014075,2]
[408636566,1774029060227,-500.0,0.00014829,2]
[408636567,1774029060237,-500.0,0.00014829,2]
[408636568,1774029060247,-151.0,0.0001589,2]
[408636569,1774029060256,-1045.138042,0.0001589,2]
[408636570,1774029060267,-151.0,0.0001589,2]
[408636571,1774029060276,-1045.138042,0.0001589,2]
[408636572,1774029060287,-151.0,0.0001589,2]
[408636573,1774029060296,-1045.138042,0.0001589,2]
[408636574,1774029060306,-1045.138042,0.0001589,2]
[408636575,1774029060315,-151.0,0.0001589,2]
[408636576,1774029060325,-1045.138034,0.0001589,2]
[408636577,1774029060338,-151.0,0.0001589,2]
[408636578,1774029060347,-238.2024,0.0001589,2]
[408636579,1774029060358,-736.41199093,0.000159,2]
[408636580,1774029060367,-120755.31160442,0.00016,2]
[408636581,1774029060379,-150.0,0.00016,2]
[408636582,1774029060388,-292708.71688213,0.00016,2]
[408636583,1774029060400,-2488.995,0.00016,2]
[408636584,1774029060412,-51016.44429669,0.00016,2]
[408636585,1774029060423,-456340.904275,0.00016,2]
[408636586,1774029837965,1235.08,8.7e-05,2]
[408636588,1774030152812,1032.56,8.92e-05,2]
[408636591,1774030231882,-1178.486041,9.195e-05,2]
[408636592,1774030231892,-226.0,9.241e-05,2]
[408636593,1774030231911,-289.4,9.241e-05,2]
[408636594,1774030231921,-250.0,9.342e-05,2]
[408636595,1774030231931,-166.66,9.451e-05,2]
[408636596,1774030231940,-200.72651587,9.451e-05,2]
[408636597,1774030231949,-250.0,9.462e-05,2]
[408636598,1774030231959,-300.0,9.49e-05,2]
[408636599,1774030231969,-300.0,9.491e-05,2]
[408636600,1774030231978,-1200.0,9.491e-05,2]
[408636601,1774030231988,-424.91366321,9.492e-05,2]
[408636602,1774030231999,-1058.89640059,9.492e-05,2]
[408636603,1774030232010,-872.48422,9.492e-05,2]
[408636604,1774030232021,-318.75595281,9.492e-05,2]
[408636605,1774030232032,-2517.01251569,9.492e-05,2]
[408636606,1774030232042,-946.4836003,9.492e-05,2]
[408636610,1774030232070,-3861.4536474,9.492e-05,2]
[408636611,1774030232078,-1224.69,9.64e-05,2]
[408636613,1774030232087,-248.84,9.702e-05,2]
[408636615,1774030232096,-956.0,9.71e-05,2]
[408636617,1774030232105,-166.66,9.763e-05,2]
[408636619,1774030232114,-963.0,9.787e-05,2]
[408636621,1774030232123,-150.0,9.8e-05,2]
[408636623,1774030232132,-331.0,9.806e-05,2]
[408636625,1774030232142,-500.0,9.847e-05,2]
[408636626,1774030232151,-150.0,9.887e-05,2]
[408636628,1774030232160,-45948.97853967,9.888e-05,2]
[408636630,1774030232169,-300.0,9.9e-05,3]
[408636632,1774030232179,-200.72651587,9.9e-05,2]
[408636634,1774030232187,-600.0,0.0001,3]
[408636636,1774030232196,-1032.56,0.00010035,2]
[408636638,1774030232205,-300.0,0.00010074,2]
[408636640,1774030232214,-150.0,0.00010074,7]
[408636642,1774030232226,-166.66,0.00010075,2]
[408636644,1774030232235,-250.0,0.00010165,2]
[408636646,1774030232244,-500.0,0.00010172,2]
[408636648,1774030232253,-500.0,0.00010172,2]
[408636650,1774030232262,-500.0,0.00010172,2]
[408636652,1774030232271,-500.0,0.00010172,2]
[408636654,1774030232280,-500.0,0.00010172,2]
[408636656,1774030232289,-500.0,0.00010172,2]
[408636658,1774030232297,-500.0,0.00010172,2]
[408636660,1774030232307,-500.0,0.00010172,2]
[408636662,1774030232316,-500.0,0.00010172,2]
[408636664,1774030232325,-500.0,0.00010172,2]
[408636666,1774030232334,-500.0,0.00010172,2]
[408636667,1774030232343,-500.0,0.00010172,2]
[408636669,1774030232351,-500.0,0.00010172,2]
[408636671,1774030232360,-500.0,0.00010172,2]
[408636673,1774030232369,-500.0,0.00010172,2]
[408636675,1774030232378,-500.0,0.00010172,2]
[408636676,1774030232387,-500.0,0.00010172,2]
[408636677,1774030232396,-518.59797932,0.00010172,2]
[408636678,1774030232406,-500.0,0.00010172,2]
[408636679,1774030232415,-500.0,0.00010172,2]
[408636680,1774030232424,-500.0,0.00010172,2]
[408636681,1774030232435,-500.0,0.00010172,2]
[408636682,1774030232445,-500.0,0.00010172,2]
[408636683,1774030232454,-500.0,0.00010172,2]
[408636684,1774030232462,-500.0,0.00010172,2]
[408636685,1774030232472,-500.0,0.00010172,2]
[408636686,1774030232481,-500.0,0.00010172,2]
[408636687,1774030232490,-500.0,0.00010172,2]
[408636688,1774030232499,-500.0,0.00010172,2]
[408636689,1774030232508,-500.0,0.00010172,2]
[408636690,1774030232518,-500.0,0.00010172,2]
[408636691,1774030232527,-500.0,0.00010172,2]
[408636692,1774030232536,-500.0,0.00010172,2]
[408636693,1774030232544,-285.38274062,0.00010172,2]
[408636694,1774030232555,-214.61725938,0.00010172,2]
[408636695,1774030232564,-208545.1406,0.00010173,2]
[408636696,1774030232572,-236.57146609,0.000102,2]
[408636697,1774030232581,-377.58739393,0.000102,2]
[408636698,1774030232590,-426.97007585,0.000102,2]
[408636699,1774030232598,-408.27352591,0.000102,2]
[408636700,1774030232607,-6525.5984091,0.000102,2]
[408636701,1774030232616,-212.22398853,0.000102,2]
[408636702,1774030232625,-349.15894242,0.000102,2]
[408636703,1774030232633,-313.86359495,0.000102,2]
[408636704,1774030232642,-335.9313168,0.000102,2]
[408636705,1774030232650,-500.60325695,0.00010273,2]
[408636706,1774030232659,-501.47592979,0.00010273,2]
[408636707,1774030232667,-500.0,0.00010273,2]
[408636708,1774030232675,-500.0,0.00010273,2]
[408636709,1774030232684,-500.0,0.00010294,2]
[408636710,1774030232692,-500.0,0.00010294,2]
[408636711,1774030232700,-500.0,0.00010294,2]
[408636712,1774030232709,-500.0,0.00010294,2]
[408636713,1774030232717,-151.0,0.00010294,2]
[408636714,1774030232726,-500.0,0.00010294,2]
[408636715,1774030232735,-151.0,0.00010294,2]
[408636716,1774030232743,-151.0,0.00010294,2]
[408636717,1774030232755,-500.0,0.00010294,2]
[408636718,1774030232763,-151.0,0.00010294,2]
[408636719,1774030232772,-500.0,0.00010294,2]
[408636720,1774030232781,-151.0,0.00010294,2]
[408636721,1774030232790,-500.0,0.00010294,2]
[408636722,1774030232799,-151.0,0.00010294,2]
[408636723,1774030232808,-500.0,0.00010294,2]
[408636724,1774030232817,-151.0,0.00010294,2]
[408636725,1774030232829,-151.0,0.00010294,2]
[408636726,1774030232838,-151.0,0.00010294,2]
[408636727,1774030232847,-151.0,0.00010294,2]
[408636728,1774030232856,-151.0,0.00010294,2]
[408636729,1774030232865,-500.0,0.00010294,2]
[408636730,1774030232875,-200.0,0.00010294,2]
[408636731,1774030232883,-151.0,0.00010294,2]
[408636732,1774030232892,-500.0,0.00010294,2]
[408636733,1774030232902,-151.0,0.00010294,2]
[408636734,1774030232911,-500.0,0.00010294,2]
[408636735,1774030232921,-184.03825259,0.00010294,2]
[408636736,1774030232930,-500.0,0.00010294,2]
[408636737,1774030232940,-151.0,0.00010294,2]
[408636738,1774030232950,-151.0,0.00010294,2]
[408636739,1774030232959,-151.0,0.00010294,2]
[408636740,1774030232969,-151.0,0.00010294,2]
[408636741,1774030232978,-151.0,0.00010294,2]
[408636742,1774030232993,-151.0,0.00010294,2]
[408636743,1774030233003,-151.0,0.00010294,2]
[408636744,1774030233012,-151.0,0.00010294,2]
[408636745,1774030233022,-151.0,0.00010294,2]
[408636746,1774030233031,-151.0,0.00010294,2]
[408636747,1774030233041,-151.0,0.00010294,2]
[408636748,1774030233051,-151.0,0.00010294,2]
[408636749,1774030233060,-151.0,0.00010294,2]
[408636750,1774030233068,-151.0,0.00010294,2]
[408636751,1774030233077,-151.0,0.00010294,2]
[408636752,1774030233086,-151.0,0.00010294,2]
[408636753,1774030233094,-151.0,0.00010294,2]
[408636754,1774030233103,-151.0,0.00010294,2]
[408636755,1774030233112,-151.0,0.00010294,2]
[408636756,1774030233121,-151.0,0.00010294,2]
[408636757,1774030233130,-3337.953,0.00010294,2]
[408636758,1774030233139,-192.774,0.00010294,2]
[408636759,1774030233147,-155.0,0.00010299,2]
[408636760,1774030233154,-500.0,0.00010299,2]
[408636761,1774030233162,-500.0,0.00010299,2]
[408636762,1774030233170,-500.0,0.00010299,2]
[408636763,1774030233179,-500.0,0.00010299,2]
[408636764,1774030233188,-500.0,0.00010299,2]
[408636765,1774030233196,-500.0,0.00010299,2]
[408636766,1774030233204,-500.0,0.00010299,2]
[408636767,1774030233212,-510.33833099,0.00010299,2]
[408636768,1774030233220,-240.15774433,0.00010299,2]
[408636769,1774030233228,-500.0,0.00010299,2]
[408636770,1774030233238,-500.0,0.00010299,2]
[408636771,1774030233246,-586.45920554,0.00010299,2]
[408636772,1774030233254,-500.0,0.00010299,2]
[408636773,1774030233263,-518976.49344821,0.000103,2]
[408636774,1774030233274,-3572.65,0.000103,2]
[408636775,1774030233352,10089.44,8.944e-05,2]
[408636776,1774030237921,-500.0,0.00010172,2]
[408636777,1774030237931,-3471.51414421,0.000103,2]
[408636778,1774030237977,-464.31085152,0.000103,2]
[408636779,1774030238034,-405.99,0.000103,2]
[408636780,1774030238046,-1343.82,0.000103,2]
[408636781,1774030238059,-874.14799494,0.000103,2]
[408636898,1774030240362,-13075.59816112,0.000103,2]
[408636899,1774030240373,-166.66,0.00010387,2]
[408636900,1774030240384,-420.0,0.00010439,2]
[408636901,1774030240394,-393.0,0.0001044,2]
[408636902,1774030240404,-1680.0,0.0001044,2]
[408636903,1774030240413,-170.24432263,0.00010455,2]
[408636904,1774030240424,-171.25,0.00010555,2]
[408636905,1774030240436,-246.51533211,0.0001059,2]
[408636906,1774030240447,-166.66,0.00010699,2]
[408636907,1774030240458,-1003.01696728,0.00010821,2]
[408636908,1774030240469,-255.0,0.00010876,2]
[408636909,1774030240479,-2805.72104179,0.000109,2]
[408636910,1774030240488,-500.25065648,0.0001095,2]
[408636911,1774030240499,-500.0,0.0001095,2]
[408636912,1774030240510,-500.0,0.0001095,2]
[408636913,1774030240519,-501.34415765,0.0001095,2]
[408636914,1774030240528,-240.86664901,0.0001095,2]
[408636915,1774030240537,-500.0,0.0001095,2]
[408636916,1774030240547,-501.38646377,0.0001095,2]
[408636917,1774030240556,-500.0,0.0001095,2]
[408636918,1774030240565,-500.0,0.0001095,2]
[408636919,1774030240574,-500.0,0.0001095,2]
[408636920,1774030240583,-166.66,0.00010959,2]
[408636921,1774030240593,-166.66,0.00011011,2]
[408636922,1774030240602,-166.66,0.00011068,2]
[408636923,1774030240611,-5535.9547463,0.00011099,2]
[408636924,1774030240620,-5535.95474629,0.00011099,2]
[408636925,1774030240629,-4655.65663723,0.00011099,2]
[408636926,1774030240639,-4655.65663715,0.00011099,2]
[408636927,1774030240648,-1032.56,0.0001115,2]
[408636928,1774030240658,-500.0,0.0001115,2]
[408636929,1774030240667,-500.0,0.0001115,2]
[408636930,1774030240676,-500.0,0.0001115,2]
[408636931,1774030240685,-448.24083087,0.0001115,2]
[408636932,1774030240694,-500.0,0.0001115,2]
[408636933,1774030240704,-166.66,0.00011178,2]
[408636934,1774030240713,-197.3668,0.000112,2]
[408636935,1774030240723,-166.66,0.00011288,2]
[408636936,1774030240732,-2805.72104175,0.00011295,2]
[408636937,1774030240741,-155.0,0.00011329,2]
[408636938,1774030240752,-4655.65663715,0.00011389,2]
[408636939,1774030240765,-166.66,0.00011397,2]
[408636940,1774030240775,-5535.95474629,0.00011467,2]
[408636941,1774030240784,-587.0,0.00011483,2]
[408636942,1774030240795,-2351.0,0.00011484,2]
[408636943,1774030240805,-1000.0,0.00011498,2]
[408636944,1774030240814,-1000.0,0.00011498,2]
[408636945,1774030240823,-888.15670323,0.00011498,2]
[408636946,1774030240833,-1000.0,0.00011498,2]
[408636947,1774030240842,-2294.53,0.00011507,2]
[408636948,1774030240851,-166.66,0.00011507,2]
[408636949,1774030240861,-500.0,0.00011541,2]
[408636950,1774030240870,-1000.0,0.00011698,2]
[408636951,1774030240879,-1000.0,0.00011698,2]
[408636952,1774030240888,-500.0,0.00011815,2]
[408636953,1774030240897,-170.24432263,0.00011944,2]
[408636954,1774030240906,-433.0,0.00011963,2]
[408636955,1774030240916,-4655.65663715,0.00012033,2]
[408636956,1774030240926,-1500.0,0.00012046,2]
[408636957,1774030240935,-1500.0,0.00012046,2]
[408636958,1774030240944,-1500.0,0.00012046,2]
[408636959,1774030240955,-500.0,0.00012089,2]
[408636960,1774030240965,-5535.95474629,0.000121,2]
[408636961,1774030240974,-413.132458,0.00012132,2]
[408636962,1774030240984,-160.415063,0.00012148,2]
[408636963,1774030240994,-250.0,0.00012149,2]
[408636964,1774030241004,-249.15761797,0.00012214,2]
[408636965,1774030241013,-355.01259051,0.00012214,2]
[408636966,1774030241022,-500.0,0.00012214,2]
[408636967,1774030241032,-7965.41053268,0.00012214,2]
[408636968,1774030241041,-250.0,0.00012214,2]
[408636969,1774030241051,-250.0,0.00012214,2]
[408636970,1774030241060,-250.0,0.00012214,2]
[408636971,1774030241070,-250.0,0.00012214,2]
[408636972,1774030241079,-250.0,0.00012214,2]
[408636973,1774030241089,-500.0,0.00012214,2]
[408636974,1774030241098,-500.0,0.00012214,2]
[408636975,1774030241107,-500.0,0.00012214,2]
[408636976,1774030241117,-500.0,0.00012214,2]
[408636977,1774030241126,-500.0,0.00012214,2]
[408636978,1774030241135,-250.0,0.00012214,2]
[408636979,1774030241144,-500.0,0.00012214,2]
[408636980,1774030241153,-250.0,0.00012214,2]
[408636981,1774030241163,-500.0,0.00012214,2]
[408636982,1774030241173,-250.0,0.00012214,2]
[408636983,1774030241183,-500.0,0.00012214,2]
[408636984,1774030241192,-500.0,0.00012214,2]
[408636985,1774030241201,-250.0,0.00012214,2]
[408636986,1774030241211,-500.0,0.00012214,2]
[408636987,1774030241220,-250.0,0.00012214,2]
[408636988,1774030241229,-265.80029316,0.00012214,2]
[408636989,1774030241239,-250.0,0.00012214,2]
[408636990,1774030241249,-174.61919141,0.00012214,2]
[408636991,1774030241259,-500.0,0.00012214,2]
[408636992,1774030241269,-250.0,0.00012214,2]
[408636993,1774030241278,-250.0,0.00012214,2]
[408636994,1774030241288,-500.0,0.00012214,2]
[408636995,1774030241298,-250.0,0.00012214,2]
[408636996,1774030241307,-500.0,0.00012214,2]
[408636997,1774030241317,-250.0,0.00012214,2]
[408636998,1774030241326,-250.0,0.00012214,2]
[408636999,1774030241336,-500.0,0.00012214,2]
[408637000,1774030241345,-250.0,0.00012214,2]
[408637001,1774030241355,-250.0,0.00012214,2]
[408637002,1774030241365,-500.0,0.00012214,2]
[408637003,1774030241375,-250.0,0.00012214,2]
[408637004,1774030241385,-269.00463473,0.00012214,2]
[408637005,1774030241394,-500.0,0.00012214,2]
[408637006,1774030241404,-250.0,0.00012214,2]
[408637007,1774030241413,-500.0,0.00012214,2]
[408637008,1774030241433,-250.0,0.00012214,2]
[408637009,1774030241445,-250.0,0.00012214,2]
[408637010,1774030241455,-250.0,0.00012214,2]
[408637011,1774030241466,-250.0,0.00012214,2]
[408637012,1774030241476,-250.0,0.00012214,2]
[408637013,1774030241485,-250.0,0.00012214,2]
[408637014,1774030241495,-151.0,0.00012214,2]
[408637015,1774030241506,-250.0,0.00012214,2]
[408637016,1774030241517,-200.0,0.00012214,2]
[408637017,1774030241527,-250.0,0.00012214,2]
[408637018,1774030241538,-250.0,0.00012214,2]
[408637019,1774030241548,-250.0,0.00012214,2]
[408637020,1774030241558,-250.0,0.00012214,2]
[408637021,1774030241567,-250.0,0.00012214,2]
[408637022,1774030241577,-250.0,0.00012214,2]
[408637023,1774030241587,-250.0,0.00012214,2]
[408637024,1774030241597,-250.0,0.00012214,2]
[408637025,1774030241606,-151.0,0.00012214,2]
[408637026,1774030241616,-250.0,0.00012214,2]
[408637027,1774030241626,-151.0,0.00012214,2]
[408637028,1774030241636,-199.04250015,0.00012214,2]
[408637029,1774030241647,-250.0,0.00012214,2]
[408637030,1774030241656,-250.0,0.00012214,2]
[408637031,1774030241666,-250.0,0.00012214,2]
[408637032,1774030241675,-250.0,0.00012214,2]
[408637033,1774030241685,-250.0,0.00012214,2]
[408637034,1774030241695,-250.0,0.00012214,2]
[408637035,1774030241705,-250.0,0.00012214,2]
[408637036,1774030241715,-250.0,0.00012214,2]
[408637037,1774030241725,-250.0,0.00012214,2]
[408637038,1774030241734,-500.0,0.00012214,2]
[408637039,1774030241745,-169.13395939,0.00012214,2]
[408637040,1774030241756,-1520.9482015,0.00012246,2]
[408637041,1774030241769,-1500.0,0.00012246,2]
[408637042,1774030241779,-1032.56,0.00012265,2]
[408637043,1774030241788,-500.0,0.00012269,2]
[408637044,1774030241799,-8260.13072239,0.00012269,2]
[408637045,1774030241809,-151.0,0.00012269,2]
[408637046,1774030241819,-500.0,0.00012324,2]
[408637047,1774030241829,-8565.75555911,0.00012324,2]
[408637048,1774030241840,-151.0,0.00012324,2]
[408637049,1774030241850,-155.0,0.00012359,2]
[408637050,1774030241860,-385.81101764,0.00012363,2]
[408637051,1774030241870,-500.0,0.00012379,2]
[408637052,1774030241880,-8882.6885148,0.00012379,2]
[408637053,1774030241890,-151.0,0.00012379,2]
[408637054,1774030241900,-2805.72104175,0.00012396,2]
[408637055,1774030241909,-1001.0,0.00012412,5]
[408637056,1774030241919,-9211.34798985,0.00012434,2]
[408637057,1774030241929,-151.0,0.00012434,2]
[408637058,1774030241939,-9552.16786547,0.00012489,2]
[408637059,1774030241949,-151.0,0.00012489,2]
[408637060,1774030241959,-151.0,0.00012544,2]
[408637061,1774030241969,-151.0,0.00012544,2]
[408637062,1774030241979,-9905.5980765,0.00012544,2]
[408637063,1774030241989,-160.0,0.00012565,2]
[408637064,1774030241999,-979.16666667,0.00012565,2]
[408637065,1774030242010,-151.0,0.00012565,2]
[408637066,1774030242020,-503.63793267,0.00012594,2]
[408637067,1774030242031,-2000.0,0.00012594,2]
[408637068,1774030242042,-216.40960233,0.00012599,2]
[408637069,1774030242053,-259.6911,0.000126,2]
[408637070,1774030242064,-300.0,0.00012631,2]
[408637071,1774030242075,-3292.0,0.00012633,2]
[408637072,1774030242086,-4655.65663715,0.00012678,2]
[408637073,1774030242096,-151.0,0.00012733,2]
[408637074,1774030242107,-5535.95474629,0.00012733,2]
[408637075,1774030242118,-174.61919141,0.00012762,2]
[408637076,1774030242128,-1698.21115659,0.00012794,2]
[408637077,1774030242139,-500.0,0.00013142,2]
[408637078,1774030242149,-500.0,0.00013151,2]
[408637079,1774030242159,-500.0,0.00013151,2]
[408637080,1774030242169,-500.0,0.00013151,2]
[408637081,1774030242179,-500.0,0.00013151,2]
[408637082,1774030242190,-500.0,0.00013151,2]
[408637083,1774030242199,-500.0,0.00013151,2]
[408637084,1774030242208,-500.0,0.00013151,2]
[408637085,1774030242218,-500.0,0.00013151,2]
[408637086,1774030242227,-500.0,0.00013151,2]
[408637087,1774030242236,-500.0,0.00013151,2]
[408637088,1774030242245,-500.0,0.00013151,2]
[408637089,1774030242256,-500.0,0.00013151,2]
[408637090,1774030242265,-500.0,0.00013151,2]
[408637091,1774030242275,-306.02537428,0.00013151,2]
[408637092,1774030242285,-736.0,0.00013159,2]
[408637093,1774030242294,-171.25,0.00013194,2]
[408637094,1774030242304,-503.0,0.000133,2]
[408637095,1774030242314,-4655.65663715,0.00013322,2]
[408637096,1774030242324,-1841.68,0.00013332,2]
[408637097,1774030242334,-5535.95474629,0.00013367,2]
[408637098,1774030242344,-1032.56,0.0001338,2]
[408637099,1774030242354,-3240.0,0.00013425,2]
[408637100,1774030242363,-170.24432263,0.00013433,2]
[408637101,1774030242373,-2805.72104175,0.00013497,2]
[408637102,1774030242383,-652.89336318,0.000136,2]
[408637103,1774030242392,-1215.0,0.00013669,2]
[408637104,1774030242402,-924.0,0.00013669,2]
[408637105,1774030242412,-150.24489128,0.0001369,2]
[408637106,1774030242421,-2465.0,0.00013691,2]
[408637107,1774030242431,-414.915,0.00013691,2]
[408637108,1774030242441,-6006.0,0.00013691,2]
[408637109,1774030242451,-500.0,0.00013698,2]
[408637110,1774030242461,-500.0,0.00013698,2]
[408637111,1774030242470,-500.0,0.00013698,2]
[408637112,1774030242480,-500.0,0.00013698,2]
[408637113,1774030242490,-500.0,0.00013698,2]
[408637114,1774030242501,-500.0,0.00013698,2]
[408637115,1774030242510,-500.0,0.00013698,2]
[408637116,1774030242589,-500.0,0.00013698,2]
[408637117,1774030242599,-500.0,0.00013698,2]
[408637118,1774030242608,-500.0,0.00013698,2]
[408637119,1774030242618,-500.0,0.00013698,2]
[408637120,1774030242627,-500.0,0.00013698,2]
[408637121,1774030242636,-500.0,0.00013698,2]
[408637122,1774030242646,-500.0,0.00013698,2]
[408637123,1774030242655,-500.0,0.00013698,2]
[408637124,1774030242664,-500.0,0.00013698,2]
[408637125,1774030242673,-237.02833959,0.00013698,2]
[408637126,1774030242683,-500.0,0.00013698,2]
[408637127,1774030242692,-500.0,0.00013698,2]
[408637128,1774030242702,-500.0,0.00013698,2]
[408637129,1774030242710,-500.0,0.00013698,2]
[408637130,1774030242720,-500.0,0.00013698,2]
[408637132,1774030242730,-500.0,0.00013698,2]
[408637134,1774030242740,-505.19692822,0.00013698,2]
[408637135,1774030242751,-500.0,0.00013698,2]
[408637136,1774030242771,-500.0,0.00013698,2]
[408637137,1774030242790,-500.0,0.00013698,2]
[408637138,1774030242799,-500.0,0.00013698,2]
[408637140,1774030242808,-500.0,0.00013698,2]
[408637141,1774030242817,-500.0,0.00013698,2]
[408637142,1774030242826,-500.0,0.00013698,2]
[408637144,1774030242836,-500.0,0.00013698,2]
[408637145,1774030242845,-500.0,0.00013698,2]
[408637146,1774030242855,-500.0,0.00013698,2]
[408637147,1774030242865,-500.0,0.00013698,2]
[408637148,1774030242875,-500.0,0.00013698,2]
[408637149,1774030242884,-500.0,0.00013698,2]
[408637150,1774030242894,-500.0,0.00013698,2]
[408637151,1774030242904,-500.0,0.00013698,2]
[408637152,1774030242914,-500.0,0.00013698,2]
[408637154,1774030242924,-500.0,0.00013698,2]
[408637156,1774030242934,-500.0,0.00013698,2]
[408637158,1774030242944,-183.92514318,0.00013698,2]
[408637159,1774030242954,-500.0,0.00013698,2]
[408637160,1774030242964,-531.3420411,0.00013698,2]
[408637161,1774030242974,-500.0,0.00013698,2]
[408637162,1774030242983,-500.0,0.00013698,2]
[408637163,1774030242993,-521.33537664,0.00013698,2]
[408637164,1774030243003,-500.0,0.00013698,2]
[408637165,1774030243012,-500.0,0.00013698,2]
[408637166,1774030243021,-500.0,0.00013698,2]
[408637167,1774030243031,-500.0,0.00013698,2]
[408637168,1774030243042,-500.0,0.00013698,2]
[408637169,1774030243051,-500.0,0.00013698,2]
[408637170,1774030243061,-500.0,0.00013698,2]
[408637171,1774030243070,-500.0,0.00013698,2]
[408637172,1774030243079,-389.65074657,0.00013698,2]
[408637173,1774030243088,-569.02,0.00013699,2]
[408637174,1774030243098,-152.52,0.00013699,2]
[408637175,1774030243107,-287.88347827,0.00013699,2]
[408637176,1774030243116,-4101.59,0.000137,2]
[408637177,1774030243126,-2450.21,0.000137,2]
[408637178,1774030243135,-393.65,0.000137,2]
[408637179,1774030243146,-66087.47,0.000137,2]